Cogmind - Beta 14 @@@ ROGUE MODE // 2025.04.30 @ 23:00:55 Player: Delget Result: Destroyed by 8A-HY6(R) with Subdweller Laser Performance ------------- Evolutions (0) 0 Regions Visited (3) 600 Robots Destroyed (10) 50 Value Destroyed (246) 246 Prototype IDs (0) 0 Alien Tech Used (0) 0 Bonus (-4) -4 TOTAL SCORE: 892 Bonus ------- Friendly Fire -4 Cogmind --------- Core Integrity 0/250 Matter 277/300 Energy 60/100 System Corruption 0% Temperature Cool (6) Movement Walking (120) Location -10/Subcaves Parts ------- > --- POWER (1) -------- (None) > --- PROPULSION (2) --- Aluminum Leg > --- UTILITY (2) ------ (None) > --- WEAPON (2) ------- Particle Gun Light Cannon > --- INVENTORY (5) ---- Small Laser Light Assault Rifle Peak State ------------ > --- POWER ------------ Light Ion Engine > --- PROPULSION ------- Aluminum Leg > --- UTILITY ---------- Scrap Shield > --- WEAPON ----------- Light Assault Rifle Light Assault Rifle > --- INVENTORY -------- Small Laser Particle Gun Light Cannon [Rating: 8] Favorites ----------- Power Ion Engine Engine Ion Engine Propulsion Light Treads Treads Light Treads Leg Aluminum Leg Utility Power Shielding Storage Small Storage Unit Protection Power Shielding Weapon Medium Laser Energy Gun Medium Laser Ballistic Gun Light Assault Rifle Build | -11 -10 -10 -10 ------- Run | Yrd Mat Min Sub Slots Evolved . | . . . . Power . | . . . . Propulsion . | . . . . Utility . | . . . . Weapon . | . . . . Parts Attached 25 | 6 3 13 3 Power 4 | 1 1 2 . Engine 4 | 1 1 2 . Core . | . . . . Reactor . | . . . . Propulsion 7 | 2 . 5 . Treads 2 | 2 . . . Leg 5 | . . 5 . Wheel . | . . . . Hover . | . . . . Flight . | . . . . Utility 6 | 1 2 2 1 Device . | . . . . Storage 3 | 1 1 1 . Processor . | . . . . Hackware . | . . . . Protection 3 | . 1 1 1 Artifact . | . . . . Weapon 8 | 2 . 4 2 Energy Gun 5 | 2 . 2 1 Energy Cannon . | . . . . Ballistic Gun 2 | . . 2 . Ballistic Cannon 1 | . . . 1 Launcher . | . . . . Special Weapon . | . . . . Impact Weapon . | . . . . Slashing Weapon . | . . . . Piercing Weapon . | . . . . Special Melee Weapon . | . . . . Unidentified Prototypes . | . . . . Parts Lost 9 | . . 6 3 Power 3 | . . 2 1 Propulsion 3 | . . 3 . Utility 1 | . . . 1 Weapon 2 | . . 1 1 Highest Loss Streak 3 | . . 3 3 To Critical Strikes . | . . . . Average Slot Usage (%) 84 | . 99 82 67 Engine 12 | . 14 12 12 Treads 15 | . 28 13 . Leg 8 | . . 10 14 Storage 3 | . 14 . . Protection 15 | . 13 16 12 Energy Gun 19 | . 28 18 . Ballistic Gun 8 | . . 9 28 Peak Build Rating 8 | 6 7 7 8 Average Rating 6 | 4 6 6 7 On Entrance 4 | . 6 7 6 Naked Turns . | . . . . Heaviest Build 90 | 14 90 90 23 Greatest Support 40 | 40 40 40 10 Greatest Overweight (x) 2 | . 2 2 2 Average Overweight (x) . | . . . 1 Largest Inventory Capacity 25 | 8 25 25 5 Average Capacity 7 | 7 14 5 5 Most Carried 6 | 3 6 5 5 Average Carried 4 | 1 3 4 3 Final Capacity 25 | 8 25 5 5 Final Carried 5 | 2 5 3 2 Class Distribution -------------------- 100% | Mutant Dominant Class ---------------- Mutant | -10/Materials Mutant | -10/Mines Mutant | -10/Subcaves Resources | -11 -10 -10 -10 ----------- Run | Yrd Mat Min Sub Matter Collected 426 | 221 49 156 . Remotely . | . . . . Salvage Created 314 | . 87 227 . Parts 20 | . 5 15 . Haulers Intercepted . | . . . . Recyclers Shooed . | . . . . Parts Field Recycled . | . . . . Retrieved Matter . | . . . . Parts Self-Destructed 1 | . . . 1 Prevented . | . . . . Kills | -11 -10 -10 -10 ------- Run | Yrd Mat Min Sub Combat Hostiles Destroyed 10 | . 2 8 . Guns 10 | . 2 8 . Classes Destroyed 2 | . 1 1 . Swarmer 5 | . . 5 . Grunt 5 | . 2 3 . Best Kill Streak 3 | . 2 3 . Combat Bots Only 3 | . 2 3 . Max Kills in Single Turn 1 | . 1 1 . Gunslinging . | . . . . Exploded . | . . . . Melee . | . . . . Uniques/NPCs Destroyed . | . . . . Combat | -11 -10 -10 -10 -------- Run | Yrd Mat Min Sub Hostile Shots Fired 143 | . 9 107 27 Missed 31 | . 1 26 4 Damage Taken 1444 | . 88 870 486 Core 270 | . 24 134 112 Absorbed by Shields . | . . . . Redirected to Shielding 48 | . 6 42 . Core Remaining (%) 100 | 100 . . . Volleys Fired 37 | . 7 26 4 Largest 2 | . 2 2 2 Hottest 90 | . 90 90 40 Shots Fired 74 | . 14 52 8 Gun 74 | . 14 52 8 Cannon . | . . . . Launcher . | . . . . Special . | . . . . Kinetic 32 | . . 24 8 Thermal 33 | . 7 26 . Explosive . | . . . . Electromagnetic 9 | . 7 2 . Robot Hit Streak 9 | . 3 9 7 Robot Miss Streak 4 | . 2 4 1 Penetration Max . | . . . . Secondary Targets 2 | . . 2 . Max Gunslinging Chain 1 | . . 1 . Shots Hit Robots 48 | . 7 34 7 Core Hits 19 | . 2 15 2 Critical Kills . | . . . . Critical Parts Destroyed 1 | . . 1 . Critical Strikes 2 | . . 2 . Burn 1 | . . 1 . Destroy 1 | . . 1 . Melee Attacks . | . . . . Impact . | . . . . Slashing . | . . . . Piercing . | . . . . Sneak Attacks . | . . . . Combat Hostiles . | . . . . Follow-up Attacks . | . . . . Damage Inflicted 515 | . 93 366 56 Guns 515 | . 93 366 56 Cannons . | . . . . Explosions . | . . . . Melee . | . . . . Ramming . | . . . . Kinetic 179 | . . 123 56 Thermal 281 | . 50 231 . Explosive . | . . . . Electromagnetic 55 | . 43 12 . Impact . | . . . . Slashing . | . . . . Piercing . | . . . . Highest Corruption . | . . . . Average Corruption . | . . . . Corruption Purged . | . . . . Corruption Blocked . | . . . . Overload Shots . | . . . . Overflow Damage . | . . . . Projectiles . | . . . . Explosions . | . . . . Melee . | . . . . Knockbacks . | . . . . Impact . | . . . . Kinetic . | . . . . Secondary . | . . . . Self-Inflicted Damage . | . . . . Shots . | . . . . Rammed . | . . . . Targets Rammed . | . . . . Kicked . | . . . . Crushed . | . . . . Highest Temperature 258 | . 258 205 . Average Temperature 82 | . 135 63 . Received Heat Transfer 357 | . 48 273 36 Siege Activations . | . . . . Robots Corrupted . | . . . . Combat Hostiles . | . . . . Parts Fried . | . . . . Impact Corruptions . | . . . . Robots Melted . | . . . . Combat Hostiles . | . . . . Parts Melted 3 | . 2 1 . Heat Transferred 828 | . 148 680 . Parts Sabotaged . | . . . . Parts Stolen . | . . . . Parts Stripped . | . . . . Power Chain Reactions . | . . . . Alert | -11 -10 -10 -10 ------- Run | Yrd Mat Min Sub Peak Influence 145 | . 40 145 . Initial 15 | . . 15 . Average 45 | . 19 57 . Maximum Alert Level . | . . . . Low Security (%) 100 | 100 100 100 . Level 1 . | . . . . Level 2 . | . . . . Level 3 . | . . . . Level 4 . | . . . . Level 5 . | . . . . High Security . | . . . . Max Security . | . . . . Squads Dispatched . | . . . . Investigation . | . . . . Extermination . | . . . . Reinforcement . | . . . . Assault . | . . . . Garrison . | . . . . Intercept . | . . . . Searches Triggered . | . . . . Construction Impeded . | . . . . Haulers Reinforced . | . . . . Active Scanning Responses . | . . . . Cargo Convoy Interrupts . | . . . . Stealth | -11 -10 -10 -10 --------- Run | Yrd Mat Min Sub Distress Signals . | . . . . Communications Jammed . | . . . . Distress Signals . | . . . . Times Spotted 21 | . 3 10 8 Peak Tracking Total 6 | . 3 3 6 Tactical Retreats 2 | . . 2 . Traps | -11 -10 -10 -10 ------- Run | Yrd Mat Min Sub Traps Triggered . | . . . . Indirectly . | . . . . Trap Hack Attempts . | . . . . Triggered . | . . . . Disarmed . | . . . . Reprogrammed . | . . . . Reused . | . . . . Traps Extracted . | . . . . Installed . | . . . . Triggered . | . . . . Machines | -11 -10 -10 -10 ---------- Run | Yrd Mat Min Sub Machines Disabled . | . . . . Max in Single Turn . | . . . . Machines Repaired . | . . . . Machines Dismantled . | . . . . Machines Sabotaged . | . . . . Overloaded Fab Kills . | . . . . Hacking | -11 -10 -10 -10 --------- Run | Yrd Mat Min Sub Machines Accessed . | . . . . Terminals . | . . . . Fabricators . | . . . . Repair Stations . | . . . . Recycling Units . | . . . . Scanalyzers . | . . . . Garrison Access . | . . . . Total Hacks . | . . . . Successful . | . . . . Failed . | . . . . Catastrophic . | . . . . Database Lockouts . | . . . . Manual . | . . . . Terminals . | . . . . Fabricators . | . . . . Repair Stations . | . . . . Recycling Units . | . . . . Scanalyzers . | . . . . Garrison Access . | . . . . Terminal Hacks . | . . . . Fabricator Hacks . | . . . . Repair Station Hacks . | . . . . Recycling Unit Hacks . | . . . . Scanalyzer . | . . . . Garrison Access Hacks . | . . . . Unauthorized Hacks . | . . . . Terminals . | . . . . Fabricators . | . . . . Repair Stations . | . . . . Recycling Units . | . . . . Scanalyzers . | . . . . Garrison Access . | . . . . Data Cores Recovered . | . . . . Used . | . . . . Hacking Detections . | . . . . Full Trace Events . | . . . . Feedback Events . | . . . . Feedback Blocked . | . . . . Robot Schematics Acquired . | . . . . Robots Built . | . . . . Authchips . | . . . . Time . | . . . . Total Robot Build Rating . | . . . . Part Schematics Acquired . | . . . . Parts Built . | . . . . Authchips . | . . . . Time . | . . . . Total Part Build Rating . | . . . . Parts Repaired . | . . . . Time . | . . . . Parts Recycled . | . . . . Recycled Matter . | . . . . Retrieved Matter . | . . . . Retrieved Components . | . . . . Parts Scanalyzed . | . . . . Part Schematics Acquired . | . . . . Parts Damaged . | . . . . Bothacking | -11 -10 -10 -10 ------------ Run | Yrd Mat Min Sub Used RIF Installer . | . . . . Robots Hacked . | . . . . Non-combat . | . . . . Combat . | . . . . Robot Hacks Applied . | . . . . Relay Couplers Released . | . . . . Fabnet Peak Effective % . | . . . . Robots Rewired . | . . . . Allies Hacked . | . . . . Hacks Repelled . | . . . . Allies | -11 -10 -10 -10 -------- Run | Yrd Mat Min Sub Total Allies . | . . . . Largest Group . | . . . . Highest-Rated Group . | . . . . Highest-Rated Ally . | . . . . Total Orders . | . . . . Ally Attacks . | . . . . Total Damage . | . . . . Kills . | . . . . Allies Corrupted . | . . . . Allies Melted . | . . . . Intel | -11 -10 -10 -10 ------- Run | Yrd Mat Min Sub Robot Analysis Total . | . . . . Derelict Logs Recovered 1 | . . 1 . Drone Launches . | . . . . Drone Recoveries . | . . . . Exploration | -11 -10 -10 -10 ------------- Run | Yrd Mat Min Sub Turns Passed 1462 | 97 293 979 93 Spaces Moved 844 | 62 130 620 32 Core 16 | 14 . 2 . Treads 463 | 48 130 285 . Legs 365 | . . 333 32 Wheels . | . . . . Hover . | . . . . Flight . | . . . . Fastest Speed 50 | 50 160 100 120 Average Speed 153 | 135 201 140 242 Slowest Speed 320 | 160 320 320 260 Overloaded Moves . | . . . . Propulsion Burnouts . | . . . . Robots Hopped . | . . . . Cave-ins Triggered . | . . . . Exploration Rate (%) 29 | 4 25 82 7 Regions Visited 3 Branch Regions 2 Pre-discovered Areas . | . . . . Known Exits Taken . | . . . . Unknown Exits Taken 3 | 1 1 1 . Scrap Searched . | . . . . Spaces Dug . | . . . . Terrain Destroyed . | . . . . Melee . | . . . . Projectile . | . . . . AOE . | . . . . Terrain Rammed . | . . . . Walls Destroyed . | . . . . Machines Disabled . | . . . . Actions | -11 -10 -10 -10 --------- Run | Yrd Mat Min Sub Total 949 | 75 149 683 42 Wait 15 | . 1 14 . Move 841 | 61 129 619 32 Hop . | . . . . Pick Up 19 | 8 7 3 1 Fast Attach 5 | . . 5 . Attach 16 | 6 3 5 2 Detach . | . . . . Swap 4 | . . 3 1 Drop 12 | . 2 8 2 Fire 37 | . 7 26 4 Melee . | . . . . Ram . | . . . . Kick . | . . . . Crush . | . . . . Escape Stasis . | . . . . Rewire . | . . . . Trap . | . . . . Miscellaneous . | . . . . Route ------- -11/Scrapyard -10/Materials -10/Mines -10/Subcaves History --------- Turn | Location | Event 21 | -11/Scrapyard | Discovered new exit (range 15) 98 | -11/Scrapyard | Entered Materials 302 | -10/Materials | Discovered new exit (range 9) 303 | -10/Materials | Build established: Mutant 391 | -10/Materials | Entered Mines 895 | -10/Mines | Lost 3 parts (1p1n1w) 1200 | -10/Mines | Core integrity fell below 50% 1227 | -10/Mines | Lost 3 parts (1p2n) 1361 | -10/Mines | Discovered new exit (range 6) 1370 | -10/Mines | Entered Subcaves 1451 | -10/Subcaves | Ambushed by swarm of Subdwellers 1451 | -10/Subcaves | Ambushed by Subdwellers from Twisted Machinery 1451 | -10/Subcaves | Ambushed by Subdwellers from Twisted Machinery 1460 | -10/Subcaves | Core integrity fell below 20% 1463 | -10/Subcaves | Destroyed by 8A-HY6(R) with Subdweller Laser Last Messages --------------- Twisted Machinery. 01451_ HV Slug penetrates BV-PTL(R). 01451_ BV-PTL(R) destroyed. 01453_ KY-H6Z(R) emerges from the Twisted Machinery. 01453_ PS-KAQ(R) emerges from the Twisted Machinery. 01454_ 8A-HY6(R) emerges from the Twisted Machinery. 01454_ HV Slug penetrates Wall. 01454_ KY-H6Z(R) suffers critical hit (Destroy). 01454_ KY-H6Z(R) destroyed. 01457_ Subatomizers dissect the Disposable Heat Sink. 01459_ Lgt. Ion Engine destroyed. 01459_ Scrap Shield destroyed. 01460_ HV Slug penetrates B8-JJH(R). 01460_ B8-JJH(R) suffers critical hit (Destroy). 01460_ B8-JJH(R) knocked back. 01463_ Lgt. Assault Rifle destroyed. Map ----- +----------------------------------------------------+ | ?????????????????????????????????????????????????? | | ?????????????????????????????????????????????????? | | ?????????????????????????????????????????????????? | | ?????????????????????????????????????????????????? | | ?????????????????????????????????????????????????? | | ?????????????????????????????????????????????????? | | ?????????????????????????????????????????????????? | | ?????????????????????????????????????????????????? | | ?????????????????????????????????????????????????? | | ?????????????????????????????????????????????????? | | ?????????????????????????????????????????????????? | | ?????????????????????????????????????????????????? | | ?????????????????????????????????????????????????? | | ?????????????????????????????????#???????????????? | | ????????????????????????????????? ???????????????? | | ???????????????????????????????? ???????????????? | | ???????????????????????????????? ???????????????? | | ???????????????????????????????? #??####?????????? | | ??????????????????????????????? #? #?????????? | | ??????????????????????????????? ## #??????????? | | ??????????????????????????????? #???????????? | | ??????????????????????????????? #????????????? | | ??????????????????????????????# #????????????? | | ???????????????????????####### #?? #???????? | | ???????????????????????#"Rh&% ## #???????? | | ???????????????????????#"@R%R% #???????? | | ???????????????????????## RR&* #???????? | | ????????????????????????##### ## #????????? | | ????????????????????????????# #??????????????? | | ?????????????????????????#### ##??????????????? | | ?????????????????????????# ##???#####??????? | | ?????????????????????#??## ##?# #??????? | | ????????????????????## # ## #???????? | | ????????????????????# #???????? | | ????????????????????## ### #???????? | | ?????????????????????# ???# #???????? | | ????????????????????# ???# ## #???????? | | ????????????????????# ## ### ## ##???????? | | ????????????????????## ### #?# ##???????? | | ???????????????????? # ####?# #???????? | | ???????????????????# ##??## #???????? | | ?????????????????????# #??# #???????? | | ????????????????????????# ### ##???????? | | ?????????????????????????# #????????? | | ????????????????????????## #????????? | | ????????????????????????# ## #????????? | | ?????????????????????#### #####????????? | | ?????????????????????# #???????????? | | ????????????????????# #???????????? | | ???????????????????# ##! ##???????????? | +----------------------------------------------------+ Best States ------------- Heat Dissipation 25 Energy Generation 10 Energy Capacity 250 Matter Stores 300 Matter Capacity 300 Sight Range 16 Terrain Scan Density 10 Armor Coverage 800 Power Shielding 33 Evasion (%) 55 Recoil Reduction 2 Item Schematics ----------------- None Robot Schematics ------------------ None Fabricated ------------ Nothing Alien Tech Used ----------------- None Achievements -------------- None Challenges ------------ None Game ------ Seed MetafiberReinforcedBarrier Manual? 0 Play Time 00:16:13 Cumulative 20.1 hours Start 2025.04.30 @ 22:45:48 End 2025.04.30 @ 23:00:55 Sessions 1 Manual Loads 0 Difficulty Rogue Special Mode None Game No. 41 Rogue 41 Adventurer 0 Explorer 0 Win Type - Total 0 Types 0/0/0/0/0/0/0/0/0 Lore% 6 Gallery% 17 Achievement% 16 Wizard Run 0 Options --------- Layout 1 ASCII 0 Keyboard 0 Movement Arrows Keybinds 0 Fullscreen 1 Font 48/Smallcaps Map View 50x35 Zoom Use 0% Tactical HUD 1 Map Filters NONE Filters NONE Steam 1 RUN: 42c7eb0f-4f10-40cd-a07a-a8d5ec9858cd